[Event "Portugal Open 2019"]
[Site "Lisbon"]
[Date "2019.02.06"]
[Round "6.28"]
[White "Aguera Naredo, Javier"]
[Black "Lisowski, Krzysztof"]
[Result "0-1"]
[ECO "B31"]
[WhiteElo "2346"]
[BlackElo "2135"]
[Annotator "NA"]
[PlyCount "94"]
[EventDate "2019.01.25"]
[EventType "swiss"]
[EventCountry "POR"]
[SourceTitle "playchess.com"]
[Source "ChessBase"]
[SourceQuality "1"]
[TimeControl "5400+30"]

1. e4 {[%emt 0:00:00]} c5 {[%emt 0:00:00]} 2. Nf3 {[%emt 0:00:02]} Nc6 {[%emt 0:00:03]} 3. Bb5 {[%emt 0:00:10]} g6 {[%emt 0:00:11]} ({Predecessor:} 3... Nf6 4. d3 g6 5. Bxc6 dxc6 6. h3 {½-½ (52) Bisby,D (2339)-Buscar,M (2099) Reykjavik 2018}) 4. Bxc6 {[%emt 0:00:13]} dxc6 {[%emt 0:00:07]} 5. d3 {[%emt 0:00:19]} Bg7 {[%emt 0:00:50]} 6. h3 {[%emt 0:00:11]} Nf6 {[%emt 0:01:05]} 7. Nc3 {[%emt 0:00:14]} Nd7 {[%emt 0:00:54]} 8. Be3 {[%emt 0:00:59]} e5 {[%emt 0:00:33]} ({Predecessor:} 8... b6 9. Qd2 h6 10. O-O {½-½ (52) Bisby,D (2339)-Buscar,M (2099) Reykjavik 2018}) 9. Qd2 {[%emt 0:00:29]} h6 {[%emt 0:01:41] B31: Sicilian: 2...Nc6 3 Bb5 g6} 10. O-O {[%emt 0:01:43]} b6 {[%emt 0:00:10]} 11. a3 {[%emt 0:01:22]} Nf8 {[%emt 0:06:07]} 12. b4 {[%emt 0:01:50]} cxb4 $146 {[%emt 0:03:47]} (12... Ne6 13. bxc5 f5 14. exf5 gxf5 15. Qe1 O-O 16. Rb1 e4 17. dxe4 {0-1 (36) Wang,H (2730)-Carlsen,M (2835) St Petersburg 2018}) 13. axb4 {[%emt 0:00:03]} Ne6 {[%emt 0:01:59]} 14. Ra3 {[%emt 0:02:54]} ({Predecessor:} 14. Na4 Nd4 15. Nxd4 exd4 {½-½ (52) Bisby,D (2339)-Buscar,M (2099) Reykjavik 2018}) 14... Nd4 {[%emt 0:21:27]} 15. Bxd4 {[%emt 0:00:55]} exd4 {[%emt 0:00:08]} 16. Ne2 {[%emt 0:00:32]} O-O {[%emt 0:02:04]} 17. Rfa1 {[%emt 0:03:01]} Qe7 {[%emt 0:10:35]} 18. Ng3 {[%emt 0:06:19]} Rd8 {[%emt 0:03:59]} 19. Ra4 {[%emt 0:02:09]} Be6 {[%emt 0:03:09]} 20. Ne2 {[%emt 0:03:13]} Bc8 {[%emt 0:28:25]} 21. Qf4 {[%emt 0:03:24]} a6 {[%emt 0:05:40]} 22. Qd2 {[%emt 0:04:58]} Bb7 {[%emt 0:00:19]} 23. Rb1 {[%emt 0:03:41]} Rac8 {[%emt 0:00:40]} 24. Qf4 {[%emt 0:02:22]} b5 {[%emt 0:00:59]} 25. Ra2 {[%emt 0:01:42]} c5 {[%emt 0:00:08]} 26. bxc5 {[%emt 0:01:28]} Qxc5 {[%emt 0:00:06]} 27. Nc1 {[%emt 0:02:21]} Qb6 {[%emt 0:03:33]} 28. Nb3 {[%emt 0:01:11]} Rc3 {[%emt 0:01:22]} 29. Rba1 {[%emt 0:06:08]} Rdc8 {[%emt 0:01:38]} 30. Ne1 {[%emt 0:00:38]} R8c7 {[%emt 0:01:05]} 31. Qd2 {[%emt 0:06:45]} Bc8 $11 {[%emt 0:01:00]} 32. Nc1 {[%emt 0:00:53]} Ra7 {[%emt 0:00:36]} 33. Ne2 {[%emt 0:01:13]} b4 {[%emt 0:00:57]} 34. Ra5 {[%emt 0:02:54]} Rc5 {[%emt 0:00:31]} 35. Rxc5 {[%emt 0:00:25]} Qxc5 {[%emt 0:00:04]} 36. f4 {[%emt 0:00:08]} a5 {[%emt 0:00:09]} 37. Nf3 {[%emt 0:00:34]} Rc7 {[%emt 0:01:33]} 38. e5 {[%emt 0:00:47]} Qxc2 {[%emt 0:00:41]} 39. Qxc2 {[%emt 0:00:06]} Rxc2 {[%emt 0:00:03]} 40. Nexd4 {[%emt 0:00:10]} Rc5 {[%emt 0:00:32]} 41. Nb3 {[%emt 0:00:49]} Rc3 {[%emt 0:00:19]} 42. Nxa5 {[%emt 0:03:06]} Rxd3 {[%emt 0:00:06]} 43. Nc6 {[%emt 0:00:12]} Bf8 {[%emt 0:01:12]} 44. Rb1 {[%emt 0:07:02]} b3 {[%emt 0:00:13]} 45. Kf1 {[%emt 0:00:37]} Bf5 {[%emt 0:00:35]} 46. Nh4 {[%emt 0:01:01]} Be4 {[%emt 0:00:20]} 47. Na5 {[%emt 0:00:08]} Rd5 {[%emt 0:00:45]} 0-1

[Event "Portugal Open 2019"]
[Site "Lisbon"]
[Date "2019.02.06"]
[Round "6.32"]
[White "Campora, Daniel H."]
[Black "Santos, Antonio P"]
[Result "1-0"]
[ECO "B51"]
[WhiteElo "2419"]
[BlackElo "2162"]
[Annotator "ChessBase"]
[PlyCount "87"]
[EventDate "2019.01.25"]
[EventType "swiss"]
[EventCountry "POR"]
[SourceTitle "playchess.com"]
[Source "ChessBase"]
[SourceQuality "1"]
[TimeControl "5400+30"]

1. e4 {[%emt 0:00:00]} c5 {[%emt 0:09:41]} 2. Nf3 {[%emt 0:00:00]} d6 {[%emt 0:00:11]} 3. Bb5+ {[%emt 0:00:47]} Nd7 {[%emt 0:00:10]} 4. c3 {[%emt 0:01:30]} Ngf6 {[%emt 0:00:24]} 5. Qe2 {[%emt 0:00:30]} e6 {[%emt 0:02:40]} 6. d4 {[%emt 0:01:19]} Be7 {[%emt 0:00:17]} 7. e5 {[%emt 0:03:36]} dxe5 {[%emt 0:05:08]} 8. dxe5 {[%emt 0:00:08]} Nd5 {[%emt 0:00:08]} 9. Bd3 {[%emt 0:10:53]} Qc7 {[%emt 0:05:59]} 10. O-O {[%emt 0:00:28]} a6 {[%emt 0:23:30]} 11. a4 {[%emt 0:00:18]} b6 {[%emt 0:00:09]} 12. Re1 {[%emt 0:02:26]} Bb7 {[%emt 0:00:42]} 13. Na3 {[%emt 0:13:14]} O-O {[%emt 0:25:32]} 14. Bd2 {[%emt 0:17:23]} Rfd8 {[%emt 0:00:29]} 15. Rad1 {[%emt 0:01:00]} c4 {[%emt 0:18:05]} 16. Nxc4 {[%emt 0:01:40]} b5 {[%emt 0:01:30]} 17. axb5 {[%emt 0:03:48]} axb5 {[%emt 0:00:02]} 18. Nd6 {[%emt 0:00:25]} Nxe5 {[%emt 0:01:23]} 19. Nxb5 {[%emt 0:03:33]} Nxf3+ {[%emt 0:00:03]} 20. Qxf3 {[%emt 0:00:10]} Qb6 {[%emt 0:00:43]} 21. Qg3 {[%emt 0:03:38]} Ba6 {[%emt 0:00:55]} 22. c4 {[%emt 0:03:32]} Bxb5 {[%emt 0:00:03]} 23. cxb5 {[%emt 0:00:29]} Bf6 {[%emt 0:00:38]} 24. Bg5 {[%emt 0:03:04]} Bxg5 {[%emt 0:00:16]} 25. Qxg5 {[%emt 0:00:05]} h6 {[%emt 0:00:08]} 26. Qe5 {[%emt 0:00:52]} Nf6 {[%emt 0:00:45]} 27. Be2 {[%emt 0:05:44]} Qa5 {[%emt 0:02:23]} 28. Qc3 {[%emt 0:00:37]} Qa7 {[%emt 0:00:44]} 29. Bf3 {[%emt 0:00:36]} Rac8 {[%emt 0:00:23]} 30. Qa3 {[%emt 0:04:46]} Qb6 {[%emt 0:01:10]} 31. Qa6 {[%emt 0:01:00]} Rxd1 {[%emt 0:00:10]} 32. Rxd1 {[%emt 0:00:45]} Rb8 {[%emt 0:00:01]} 33. Qxb6 {[%emt 0:02:05]} Rxb6 {[%emt 0:00:03]} 34. Rd8+ {[%emt 0:00:13]} Kh7 {[%emt 0:00:02]} 35. Bc6 {[%emt 0:00:04]} g5 {[%emt 0:01:08]} 36. f3 {[%emt 0:01:27]} Kg7 {[%emt 0:00:50]} 37. Kf2 {[%emt 0:01:47]} Ng8 {[%emt 0:00:13]} 38. Re8 {[%emt 0:01:41]} Nf6 {[%emt 0:00:07]} 39. Rc8 {[%emt 0:01:29]} Nd5 {[%emt 0:00:06]} 40. Bxd5 {[%emt 0:00:32]} exd5 {[%emt 0:00:02]} 41. Rc5 {[%emt 0:00:29]} d4 {[%emt 0:02:39]} 42. Ke2 {[%emt 0:00:13]} Kf8 {[%emt 0:00:19]} 43. Kd3 {[%emt 0:00:29]} Rd6 {[%emt 0:00:01]} 44. Rc4 {[%emt 0:00:41]} 1-0

[Event "Portugal Open 2019"]
[Site "Lisbon"]
[Date "2019.02.06"]
[Round "6.35"]
[White "Thompson, Ian D"]
[Black "Pastar, Slaven"]
[Result "0-1"]
[ECO "A27"]
[WhiteElo "2122"]
[BlackElo "2330"]
[Annotator "NA"]
[PlyCount "63"]
[EventDate "2019.01.25"]
[EventType "swiss"]
[EventCountry "POR"]
[SourceTitle "playchess.com"]
[Source "ChessBase"]
[SourceQuality "1"]
[TimeControl "5400+30"]

1. c4 e5 2. Nc3 Nc6 3. Nf3 g6 4. d4 exd4 5. Nxd4 Bg7 6. Nxc6 bxc6 7. g3 Ne7 {A27: English Opening: Three Knights Variation} 8. Bg2 Rb8 $146 ({Predecessor:} 8... O-O 9. O-O d6 (9... Rb8 10. Qa4 d6 11. Qxa7 Be6 {1-0 (49) Ipatov,A (2614)-Annaberdiev,M (2439) Kocaeli 2014}) 10. Bg5 Be6 11. Qd3 Rb8 12. b3 c5 13. Rad1 h6 14. Bc1 Re8 15. Qd2 Kh7 16. Bb2 Ng8 17. Rfe1 Nf6 18. h3 {½-½ (33) So,W (2765)-Mamedyarov,S (2817) Kolkata 2018}) 9. Qa4 d6 10. Qxa7 Be6 11. Qa4 O-O 12. O-O Ra8 13. Qc2 Bxc4 14. Bg5 f6 15. Bd2 ({Predecessor:} 15. Bf4 Bf7 16. Rad1 Qb8 17. b3 Ra6 18. h4 {1-0 (49) Ipatov,A (2614)-Annaberdiev,M (2439) Kocaeli 2014}) 15... Rb8 16. Rfd1 c5 17. Rac1 Qe8 18. b3 Be6 19. Be1 Qf7 20. Nb1 Nd5 21. e4 Nb4 22. Qe2 h5 23. Nc3 Rbe8 24. Nb5 Nc6 25. b4 c4 26. Bc3 Ne5 27. Bxe5 fxe5 28. Rc3 $11 Ra8 29. Qc2 Ra6 30. Bf1 Rfa8 31. a4 Rxa4 32. Ra1 0-1

[Event "Portugal Open 2019"]
[Site "Lisbon"]
[Date "2019.02.06"]
[Round "6.37"]
[White "Bruaset, Eivind"]
[Black "Godzwon, Iwo"]
[Result "0-1"]
[ECO "B90"]
[WhiteElo "2124"]
[BlackElo "2322"]
[Annotator "NA"]
[PlyCount "116"]
[EventDate "2019.01.25"]
[EventType "swiss"]
[EventCountry "POR"]
[SourceTitle "playchess.com"]
[Source "ChessBase"]
[SourceQuality "1"]
[TimeControl "5400+30"]

1. e4 c5 2. Nf3 d6 3. d4 cxd4 4. Nxd4 Nf6 5. Nc3 a6 6. h3 e6 $146 ({Predecessor:} 6... Nc6 7. g4 h6 8. f4 e6 9. Bg2 Bd7 10. Be3 Be7 11. Qe2 Qc7 {½-½ (52) Smirin,I (2666)-Hartman,B (2405) ICC INT 2000}) 7. g4 h6 8. Bg2 Qc7 9. Be3 Nc6 10. Qe2 {B81: Sicilian Scheveningen: Keres Attack} Bd7 11. O-O-O Be7 12. f4 Nxd4 13. Bxd4 e5 14. Be3 Bc6 15. Qf2 (15. Kb1 $142) 15... Nd7 16. Nd5 Bxd5 17. Rxd5 Qc4 18. Kb1 Nf6 19. Rd3 Nxe4 20. Bxe4 Qxe4 21. Re1 Qc6 22. fxe5 dxe5 23. Qf5 Bf6 24. Rc3 Qd7 25. Bf4 Qxf5 26. gxf5 O-O 27. Bxe5 Rfe8 28. Rce3 Bg5 29. Re4 Rad8 30. Bd4 Rxe4 31. Rxe4 g6 32. c3 gxf5 33. Re1 Kh7 34. Rg1 f6 $11 (34... Re8 $17 35. h4 Be3 36. Rg7+ {[%mdl 64] Double Attack} Kh8 37. Rxf7+ Bxd4 38. cxd4 Rd8) 35. Kc2 Re8 36. Kd3 f4 37. a4 Re6 38. b4 Bh4 39. b5 Bg3 40. c4 Rd6 41. Rc1 Bf2 42. Ke4 Rxd4+ 43. Kf5 Be3 44. Rf1 Rxc4 45. Kxf6 Rxa4 46. bxa6 Rxa6+ 47. Kf5 b5 48. Ke4 b4 49. Rb1 Rb6 50. Rb3 Kg6 51. Kf3 Kf5 52. h4 h5 53. Ke2 Ke4 54. Kf1 Kf3 55. Rb2 b3 56. Rf2+ Ke4 57. Rb2 Bd4 58. Re2+ Kf5 0-1

[Event "Portugal Open 2019"]
[Site "Lisbon"]
[Date "2019.02.06"]
[Round "6.38"]
[White "Napoli, Nicolo"]
[Black "Jazdanovs, Aleksandrs"]
[Result "1-0"]
[ECO "A57"]
[WhiteElo "2316"]
[BlackElo "2100"]
[Annotator "NA"]
[PlyCount "91"]
[EventDate "2019.01.25"]
[EventType "swiss"]
[EventCountry "POR"]
[SourceTitle "playchess.com"]
[Source "ChessBase"]
[SourceQuality "1"]
[TimeControl "5400+30"]

1. d4 Nf6 2. c4 c5 {[%emt 0:03:06]} 3. d5 {[%emt 0:00:00]} b5 {[%emt 0:00:06]} 4. Nf3 {[%emt 0:00:00]} bxc4 {[%emt 0:01:35]} 5. Nc3 {[%emt 0:00:01]} g6 {[%emt 0:04:17]} ({Predecessor:} 5... d6 6. e4 {1-0 (52) Khamitskiy,S (2324)-Kalata,M (2151) Chojnice 2008}) 6. e4 {[%emt 0:00:43]} d6 {[%emt 0:00:13]} 7. Bxc4 {[%emt 0:00:20]} Bg7 {[%emt 0:00:47]} 8. e5 {[%emt 0:03:12]} dxe5 {[%emt 0:03:29]} 9. Nxe5 {[%emt 0:00:16]} O-O {[%emt 0:01:13]} 10. O-O {[%emt 0:00:13]} Nfd7 {[%emt 0:01:27]} 11. Nc6 $146 {[%emt 0:06:46] A57: Benko/Volga Gambit} (11. Nxf7 Rxf7 12. d6 Nb6 13. Bxf7+ Kxf7 14. Qf3+ Bf6 15. dxe7 Qxe7 16. Bg5 Kg7 17. Rfe1 Qf7 18. Ne4 Bxg5 19. Qxf7+ Kxf7 20. Nxg5+ {1-0 (32) Gasanov,E (2499)-Pogosyan,S (2365) St Petersburg 2018}) 11... Nxc6 {[%emt 0:01:43]} 12. dxc6 {[%emt 0:00:04]} Nb6 {[%emt 0:00:40]} 13. Be2 {[%emt 0:00:08]} Qc7 {[%emt 0:09:04]} 14. a4 {[%emt 0:10:03]} ({Predecessor:} 14. Bf3 Ba6 15. Re1 Rad8 16. Qb3 Bc4 17. Qa3 Bd4 18. Bh6 Rfe8 {1-0 (52) Khamitskiy,S (2324)-Kalata,M (2151) Chojnice 2008}) 14... Bxc3 {[%emt 0:05:28]} 15. bxc3 {[%emt 0:00:17]} Rd8 {[%emt 0:03:15]} 16. Qb3 {[%emt 0:15:33]} Be6 {[%emt 0:01:51]} 17. Qb5 {[%emt 0:10:10]} Rac8 {[%emt 0:00:59]} 18. a5 {[%emt 0:06:45]} Nd5 {[%emt 0:00:50]} 19. Bf3 {[%emt 0:03:50]} Qe5 {[%emt 0:13:52]} 20. Qxc5 {[%emt 0:02:51]} Qxc3 {[%emt 0:00:14]} 21. Qxc3 {[%emt 0:01:01]} Nxc3 {[%emt 0:00:07]} 22. Be3 {[%emt 0:00:17]} Bd5 {[%emt 0:01:28]} 23. Bxd5 {[%emt 0:03:13]} Nxd5 {[%emt 0:00:09]} 24. Bxa7 {[%emt 0:00:16]} Rxc6 {[%emt 0:00:17]} 25. Rfd1 {[%emt 0:03:03]} e6 {[%emt 0:01:27]} 26. Be3 {[%emt 0:00:29]} Ra6 {[%emt 0:02:09]} 27. Bd2 {[%emt 0:01:00]} f6 {[%emt 0:06:50]} 28. Kf1 {[%emt 0:00:13]} e5 {[%emt 0:00:38]} 29. Ke2 {[%emt 0:01:49]} Kf7 {[%emt 0:00:06]} 30. g3 {[%emt 0:00:32]} Ke6 {[%emt 0:02:45]} 31. Rdc1 $11 {[%emt 0:04:57]} Ne7 {[%emt 0:01:35]} 32. Rc7 {[%emt 0:03:59]} Nc6 {[%emt 0:02:59]} 33. Bc3 {[%emt 0:01:32]} h5 {[%emt 0:01:56]} 34. h4 {[%emt 0:01:28]} Rd5 {[%emt 0:05:50]} 35. Rg7 {[%emt 0:02:51]} Kf5 {[%emt 0:00:35]} 36. f3 {[%emt 0:00:25]} Nd4+ {[%emt 0:02:08]} 37. Bxd4 {[%emt 0:01:13]} exd4 {[%emt 0:00:07]} 38. g4+ {[%emt 0:05:03]} hxg4 {[%emt 0:00:24]} 39. fxg4+ {[%emt 0:00:04]} Kxg4 {[%emt 0:00:16]} 40. Rxg6+ {[%emt 0:00:24]} Kh5 {[%emt 0:00:15]} 41. Rg8 {[%emt 0:01:05]} Raxa5 {[%emt 0:01:19]} 42. Rag1 {[%emt 0:01:24]} d3+ {[%emt 0:11:59]} 43. Kd2 {[%emt 0:01:03]} Ra2+ {[%emt 0:00:09]} 44. Kc3 {[%emt 0:00:37]} Rc2+ {[%emt 0:00:13]} 45. Kb3 {[%emt 0:00:37]} Rb5+ {[%emt 0:00:49]} 46. Ka4 {[%emt 0:00:09]} 1-0

[Event "Portugal Open 2019"]
[Site "Lisbon"]
[Date "2019.02.06"]
[Round "6.40"]
[White "Aflalo, Sophie"]
[Black "Chylewski, Patryk"]
[Result "0-1"]
[ECO "A12"]
[WhiteElo "2091"]
[BlackElo "2304"]
[Annotator "NA"]
[PlyCount "76"]
[EventDate "2019.01.25"]
[EventType "swiss"]
[EventCountry "POR"]
[SourceTitle "playchess.com"]
[Source "ChessBase"]
[SourceQuality "1"]
[TimeControl "5400+30"]

1. Nf3 {[%emt 0:09:43]} Nf6 {[%emt 0:00:49]} 2. b3 {[%emt 0:00:08]} d5 {[%emt 0:01:53]} 3. Bb2 {[%emt 0:00:05]} c6 {[%emt 0:01:47]} 4. c4 {[%emt 0:03:06]} Bg4 {[%emt 0:00:53]} 5. d3 {[%emt 0:00:56]} e6 {[%emt 0:01:29]} 6. Nbd2 {[%emt 0:00:57]} Nbd7 {[%emt 0:00:26]} 7. Ne5 {[%emt 0:07:55]} Nxe5 {[%emt 0:07:00]} 8. Bxe5 {[%emt 0:00:02]} Bd6 {[%emt 0:02:58]} 9. Bb2 {[%emt 0:03:33]} a5 {[%emt 0:00:43]} 10. a3 {[%emt 0:01:55]} O-O {[%emt 0:01:51]} 11. g3 {[%emt 0:00:18]} Qc7 {[%emt 0:04:02]} 12. Bg2 {[%emt 0:00:22]} Be5 {[%emt 0:05:04]} 13. d4 {[%emt 0:03:27]} Bd6 {[%emt 0:00:05]} 14. O-O {[%emt 0:00:55]} Qe7 {[%emt 0:02:06]} 15. Qe1 {[%emt 0:13:54]} c5 {[%emt 0:17:50]} 16. cxd5 {[%emt 0:02:13]} cxd4 {[%emt 0:12:05]} 17. Bxd4 {[%emt 0:01:48]} Nxd5 {[%emt 0:04:58]} 18. e4 {[%emt 0:04:15]} Nc7 {[%emt 0:00:14]} 19. Nc4 {[%emt 0:05:14]} e5 {[%emt 0:00:15]} 20. Bc3 {[%emt 0:02:26]} Nb5 {[%emt 0:04:32]} 21. Nb6 {[%emt 0:18:35]} Ra6 {[%emt 0:01:07]} 22. Nd5 {[%emt 0:01:39]} Qd7 {[%emt 0:00:37]} 23. Bb2 $11 {[%emt 0:02:25]} a4 {[%emt 0:13:29]} 24. b4 {[%emt 0:03:41]} f6 {[%emt 0:00:17]} 25. Qe3 {[%emt 0:00:45]} Bb8 {[%emt 0:00:32]} 26. h3 Bxh3 {[%emt 0:04:18]} 27. Nb6 {[%emt 0:05:57]} Qe6 {[%emt 0:01:55]} 28. Bxh3 {[%emt 0:00:35]} Qxh3 {[%emt 0:01:55]} 29. Qc5 {[%emt 0:02:01]} Ba7 {[%emt 0:03:55]} 30. Qd5+ {[%emt 0:02:06]} Kh8 {[%emt 0:00:09]} 31. Nd7 {[%emt 0:00:48]} Qxg3+ 32. Kh1 Qh3+ {[%emt 0:01:38]} 33. Kg1 {[%emt 0:00:01]} Qg4+ {[%emt 0:00:28]} 34. Kh1 {[%emt 0:01:22]} f5 {[%emt 0:01:40]} 35. Qxe5 {[%emt 0:00:43]} Rh6+ {[%emt 0:00:10]} 36. Qh2 {[%emt 0:00:03]} Qf3+ {[%emt 0:00:07]} 37. Kg1 {[%emt 0:00:13]} Rg6+ {[%emt 0:00:02]} 38. Qg3 {[%emt 0:00:09]} Qxg3+ {[%emt 0:00:05]} 0-1

[Event "Portugal Open 2019"]
[Site "Lisbon"]
[Date "2019.02.07"]
[Round "7.4"]
[White "Korley, Kassa"]
[Black "Bernadskiy, Vitaliy"]
[Result "0-1"]
[ECO "E93"]
[WhiteElo "2426"]
[BlackElo "2570"]
[Annotator "RC"]
[PlyCount "94"]
[EventDate "2019.01.25"]
[EventType "swiss"]
[EventCountry "POR"]
[SourceTitle "playchess.com"]
[Source "ChessBase"]
[SourceQuality "1"]
[TimeControl "5400+30"]

1. d4 {[%emt 0:00:00]} Nf6 {[%emt 0:00:00]} 2. Nf3 {[%emt 0:00:00]} g6 {[%emt 0:00:00]} 3. c4 {[%emt 0:00:00]} Bg7 {[%emt 0:00:00]} 4. Nc3 {[%emt 0:00:00]} O-O {[%emt 0:00:00]} 5. e4 {[%emt 0:00:00]} d6 {[%emt 0:00:06]} 6. Be2 {[%emt 0:00:00]} e5 {[%emt 0:01:18]} 7. d5 {[%emt 0:00:03]} Nbd7 {[%emt 0:01:51]} 8. Be3 {[%emt 0:00:42]} Ng4 {[%emt 0:01:03]} 9. Bg5 {[%emt 0:00:12]} f6 {[%emt 0:00:13]} 10. Bc1 {[%emt 0:00:17]} Nh6 {[%emt 0:01:21]} 11. h4 {[%emt 0:02:52]} f5 {[%emt 0:10:03]} 12. Ng5 {[%emt 0:10:15]} Nf6 {[%emt 0:01:26]} 13. h5 {[%emt 0:05:20]} gxh5 {[%emt 0:12:41]} 14. Ne6 {[%emt 0:11:55]} Bxe6 15. dxe6 {[%emt 0:00:12]} f4 {[%emt 0:10:59]} 16. Qb3 {[%emt 0:01:58]} b6 {[%emt 0:05:04]} 17. c5 {[%emt 0:03:34]} Kh8 {[%emt 0:00:41]} 18. cxb6 {[%emt 0:01:31]} axb6 {[%emt 0:02:52]} 19. Nd5 {[%emt 0:04:48]} Nxd5 {[%emt 0:00:35]} 20. exd5 {[%emt 0:04:34]} Qg5 {[%emt 0:03:09]} 21. g3 {[%emt 0:05:21]} Ng4 {[%emt 0:01:07]} 22. gxf4 {[%emt 0:00:30]} exf4 {[%emt 0:00:42]} 23. Bd2 {[%emt 0:01:19]} Rf5 {[%emt 0:04:35]} 24. Bf3 {[%emt 0:03:47]} Re5+ {[%emt 0:03:51]} 25. Kf1 {[%emt 0:00:01]} Nxf2 {[%emt 0:04:45]} 26. Rxh5 {[%emt 0:01:47]} Qg3 {[%emt 0:00:09]} 27. Rxe5 {[%emt 0:01:30]} Nh3 {[%emt 0:00:28]} 28. Be1 {[%emt 0:01:42]} Qg1+ {[%emt 0:00:08]} 29. Ke2 {[%emt 0:00:03]} Bxe5 {[%emt 0:02:49]} 30. Rc1 {[%emt 0:05:16]} Qg7 {[%emt 0:10:57]} 31. Kd1 {[%emt 0:09:38]} Ng5 {[%emt 0:00:08]} 32. Be2 {[%emt 0:01:03]} Rf8 {[%emt 0:02:14]} 33. Qc2 {[%emt 0:01:51]} f3 {[%emt 0:02:57]} 34. Bb5 {[%emt 0:00:08]} Qf6 {[%emt 0:00:26]} 35. Bh4 {[%emt 0:05:52]} Rg8 {[%emt 0:01:23]} 36. Qd3 {[%emt 0:02:29]} Qf4 {[%emt 0:01:54]} 37. Rc4 {[%emt 0:04:23]} Qh2 {[%emt 0:02:58]} 38. Qd2 {[%emt 0:00:38]} Qg1+ {[%emt 0:02:18]} 39. Kc2 {[%emt 0:00:59]} Bf6 {[%emt 0:05:32]} 40. Bf2 {[%emt 0:04:15]} Qh2 {[%emt 0:01:27]} 41. Bd4 {[%emt 0:02:10]} Qxd2+ {[%emt 0:01:45]} 42. Kxd2 {[%emt 0:00:02]} Ne4+ {[%emt 0:00:51]} 43. Ke3 {[%emt 0:00:19]} f2 {[%emt 0:00:36]} 44. Rxc7 {[%emt 0:01:22]} Bxd4+ {[%emt 0:01:41]} 45. Kxd4 {[%emt 0:01:10]} Nf6 {[%emt 0:00:54]} 46. Rf7 {[%emt 0:01:25]} Rg4+ {[%emt 0:00:28]} 47. Kd3 {[%emt 0:00:11]} f1=Q+ {[%emt 0:00:07] Kd4} 0-1

[Event "Portugal Open 2019"]
[Site "Lisbon"]
[Date "2019.02.07"]
[Round "7.5"]
[White "Alshameary Puente, Ismael"]
[Black "Xu, Xiangyu"]
[Result "1/2-1/2"]
[ECO "D70"]
[WhiteElo "2418"]
[BlackElo "2565"]
[Annotator "RC"]
[PlyCount "57"]
[EventDate "2019.01.25"]
[EventType "swiss"]
[EventCountry "POR"]
[SourceTitle "playchess.com"]
[Source "ChessBase"]
[SourceQuality "1"]
[TimeControl "5400+30"]

1. d4 {[%emt 0:02:04]} Nf6 {[%emt 0:00:00]} 2. c4 {[%emt 0:00:12]} g6 {[%emt 0:00:00]} 3. Nf3 {[%emt 0:00:33]} Bg7 {[%emt 0:00:00]} 4. g3 {[%emt 0:00:06]} d5 {[%emt 0:00:19]} 5. cxd5 {[%emt 0:03:13]} Nxd5 {[%emt 0:00:09]} 6. Bg2 {[%emt 0:00:03]} Nb6 {[%emt 0:00:11]} 7. Nc3 {[%emt 0:01:37]} Nc6 {[%emt 0:00:08]} 8. e3 {[%emt 0:00:04]} e5 {[%emt 0:00:07]} 9. d5 {[%emt 0:06:28]} Ne7 {[%emt 0:00:08]} 10. e4 {[%emt 0:00:08]} Bg4 {[%emt 0:00:07]} 11. h3 {[%emt 0:13:22]} Bxf3 {[%emt 0:00:12]} 12. Bxf3 {[%emt 0:00:02]} O-O {[%emt 0:00:14]} 13. h4 {[%emt 0:00:41]} c6 {[%emt 0:04:42]} 14. h5 {[%emt 0:13:23]} cxd5 {[%emt 0:00:11]} 15. exd5 {[%emt 0:00:26]} Nf5 {[%emt 0:00:21]} 16. Bg2 {[%emt 0:06:49]} Nd4 {[%emt 0:00:49]} 17. Ne2 {[%emt 0:14:28]} Nxd5 {[%emt 0:09:30]} 18. hxg6 {[%emt 0:00:12]} hxg6 {[%emt 0:00:06]} 19. Nxd4 {[%emt 0:06:55]} exd4 {[%emt 0:00:09]} 20. Qg4 {[%emt 0:02:24]} Re8+ {[%emt 0:46:38]} 21. Kf1 {[%emt 0:00:18]} Re5 {[%emt 0:00:07]} 22. Bf3 {[%emt 0:10:47]} Rf5 {[%emt 0:01:06]} 23. Bh6 {[%emt 0:06:51]} Nf6 {[%emt 0:01:55]} 24. Qh4 {[%emt 0:00:24]} Nh5 {[%emt 0:00:30]} 25. Bxg7 {[%emt 0:01:47]} Kxg7 {[%emt 0:00:39]} 26. Qe4 {[%emt 0:01:12]} Nf6 {[%emt 0:02:16]} 27. Qh4 {[%emt 0:00:17]} Nh5 {[%emt 0:00:11]} 28. Qe4 {[%emt 0:00:02]} Nf6 {[%emt 0:01:27]} 29. Qh4 {[%emt 0:00:01]} 1/2-1/2